fUSD/lending_fUSD_20241222
["ID","MTS","AMOUNT","RATE_DAILY","PERIOD"]
[346285612,1734867046456,-142.79675629,0.0001945,2]
[346285613,1734867046466,-500.0,0.0001945,2]
[346285614,1734867046475,-500.0,0.00019724,2]
[346285615,1734867046484,-500.0,0.00019724,2]
[346285616,1734867046493,-500.0,0.00019998,2]
[346285617,1734867046502,-500.0,0.00019998,2]
[346285618,1734867046512,-1154.08914171,0.0002,2]
[346285619,1734867046523,-6769.59999998,0.0002,2]
[346285620,1734867046534,-8279.51157533,0.0002,2]
[346285621,1734867046545,-3121.63675644,0.0002,2]
[346285622,1734867067366,154.0,0.00010137,2]
[346285625,1734867937636,166.38,0.00010137,2]
[346285636,1734868232386,-160.27,0.00013699,2]
[346285637,1734868232396,-505.949778,0.00015691,2]
[346285638,1734868232407,-330.21289797,0.00015691,2]
[346285639,1734868232444,-322.46732403,0.00015691,2]
[346285640,1734868232455,-500.0,0.00017144,2]
[346285641,1734868232464,-500.0,0.00017144,2]
[346285642,1734868232473,-504.74204352,0.00017574,2]
[346285643,1734868232484,-412.40818989,0.00017574,2]
[346285644,1734868232615,-1061.58976659,0.00017574,2]
[346285645,1734868232626,-936.65,0.00017585,2]
[346285646,1734868232636,-167.32,0.00017618,2]
[346285647,1734868232645,-1500.0,0.00017635,2]
[346285648,1734868232655,-250.0,0.00017703,2]
[346285649,1734868232664,-250.0,0.0001772,2]
[346285650,1734868232673,-164.9,0.00017725,2]
[346285651,1734868232683,-2751.0,0.00017736,2]
[346285652,1734868232692,-200.0,0.0001774,2]
[346285653,1734868232701,-341.49,0.00017743,2]
[346285654,1734868232711,-1158.63,0.00017955,2]
[346285655,1734868232720,-500.0,0.0001824,2]
[346285656,1734868232729,-150.0,0.00018301,2]
[346285657,1734868232738,-485.0,0.00018318,2]
[346285658,1734868232748,-485.0,0.00018323,2]
[346285659,1734868232757,-150.0,0.00018323,2]
[346285661,1734868232766,-485.0,0.00018327,2]
[346285662,1734868232776,-485.0,0.00018332,2]
[346285663,1734868232785,-485.0,0.00018337,2]
[346285664,1734868232794,-485.0,0.00018342,2]
[346285665,1734868232803,-485.0,0.00018347,2]
[346285666,1734868232812,-485.0,0.00018351,2]
[346285667,1734868232822,-485.0,0.00018356,2]
[346285668,1734868232831,-485.0,0.00018361,2]
[346285672,1734868232840,-485.0,0.00018366,2]
[346285676,1734868232849,-485.0,0.00018371,2]
[346285679,1734868232859,-319.94383341,0.00018376,2]
[346285683,1734868232882,-165.05616659,0.00018376,2]
[346285684,1734868232891,-485.0,0.0001838,2]
[346285685,1734868232899,-485.0,0.00018385,2]
[346285690,1734868233104,-485.0,0.0001839,2]
[346285692,1734868233114,-485.0,0.00018395,2]
[346285694,1734868233123,-485.0,0.000184,2]
[346285696,1734868233133,-485.0,0.00018405,2]
[346285697,1734868233143,-485.0,0.00018409,2]
[346285700,1734868233152,-500.0,0.00018485,2]
[346285701,1734868233161,-981.97,0.0001852,2]
[346285702,1734868233170,-200.0,0.00018552,2]
[346285703,1734868233179,-23900.0,0.00018596,2]
[346285704,1734868233189,-250.0,0.00018644,2]
[346285705,1734868233198,-202.0,0.0001868,2]
[346285706,1734868233207,-1000.0,0.00018759,2]
[346285707,1734868233217,-152.0,0.0001886,3]
[346285708,1734868233227,-162.97,0.00018936,30]
[346285709,1734868233236,-202.0,0.0001894,2]
[346285710,1734868233245,-443.406,0.00019,2]
[346285711,1734868233254,-300.0,0.00019014,2]
[346285712,1734868233264,-202.0,0.0001921,2]
[346285713,1734868233273,-500.0,0.00019336,2]
[346285714,1734868233283,-500.0,0.00019336,2]
[346285715,1734868233292,-400.22168426,0.00019349,2]
[346285716,1734868233302,-2500.0,0.0001935,2]
[346285717,1734868233311,-184.8709,0.00019351,2]
[346285718,1734868233320,-62187.39459288,0.00019351,2]
[346285719,1734868233332,-32054.44670712,0.00019351,2]
[346285720,1734868233341,-400.22168418,0.0001941,2]
[346285721,1734868233351,-1947.6866,0.00019425,2]
[346285722,1734868233363,-1492.61,0.0001944,2]
[346285723,1734868233373,-500.0,0.00019449,2]
[346285724,1734868233383,-539.51283417,0.00019449,2]
[346285725,1734868233392,-694.89,0.00019449,2]
[346285726,1734868233401,-379.366327,0.00019449,2]
[346285727,1734868233410,-439.160642,0.00019449,2]
[346285728,1734868233419,-155.224097,0.00019449,2]
[346285729,1734868233429,-500.0,0.00019449,2]
[346285730,1734868233441,-1868.46,0.00019449,2]
[346285731,1734868233451,-555.82,0.00019449,2]
[346285732,1734868233460,-546.92,0.00019449,2]
[346285733,1734868233469,-5687.81,0.00019449,2]
[346285734,1734868233479,-500.0,0.00019449,2]
[346285735,1734868233489,-500.0,0.00019449,2]
[346285736,1734868233498,-500.0,0.00019449,2]
[346285737,1734868233508,-500.0,0.00019449,2]
[346285738,1734868233519,-500.0,0.00019449,2]
[346285739,1734868233528,-1542.34,0.00019449,2]
[346285740,1734868233537,-1438.75,0.00019449,2]
[346285741,1734868233546,-523.94,0.00019449,2]
[346285742,1734868233554,-500.0,0.00019449,2]
[346285743,1734868233562,-693.12,0.00019449,2]
[346285744,1734868233573,-1589.32,0.00019449,2]
[346285745,1734868233582,-976.25,0.00019449,2]
[346285746,1734868233592,-929.32,0.00019449,2]
[346285747,1734868233601,-7084.68,0.00019449,2]
[346285748,1734868233611,-1572.79,0.00019449,2]
[346285749,1734868233621,-585.54,0.00019449,2]
[346285750,1734868233631,-500.0,0.00019449,2]
[346285751,1734868233640,-500.0,0.00019449,2]
[346285752,1734868233650,-528.72,0.00019449,2]
[346285753,1734868233659,-522.09,0.00019449,2]
[346285754,1734868233668,-3008.07,0.00019449,2]
[346285755,1734868233678,-704.69,0.00019449,2]
[346285756,1734868233687,-1494.56,0.00019449,2]
[346285757,1734868233697,-500.0,0.00019449,2]
[346285758,1734868233707,-6120.54,0.00019449,2]
[346285759,1734868233716,-1892.03,0.00019449,2]
[346285760,1734868233726,-500.0,0.00019449,2]
[346285761,1734868233736,-2879.78,0.00019449,2]
[346285762,1734868233745,-500.0,0.00019449,2]
[346285763,1734868233755,-500.0,0.00019449,2]
[346285764,1734868233765,-1391.97,0.00019449,2]
[346285765,1734868233775,-2012.89,0.00019449,2]
[346285766,1734868233785,-500.0,0.00019449,2]
[346285767,1734868233794,-11499.25,0.00019449,2]
[346285768,1734868233804,-500.0,0.00019449,2]
[346285769,1734868233814,-551.31,0.00019449,2]
[346285770,1734868233824,-768.07,0.00019449,2]
[346285771,1734868233834,-500.0,0.00019449,2]
[346285772,1734868233843,-500.0,0.00019449,2]
[346285773,1734868233854,-515.23,0.0001945,2]
[346285774,1734868233864,-500.0,0.0001945,2]
[346285775,1734868233873,-500.0,0.0001945,2]
[346285776,1734868233883,-500.0,0.0001945,2]
[346285777,1734868233893,-500.0,0.0001945,2]
[346285778,1734868233902,-500.0,0.0001945,2]
[346285779,1734868233911,-500.0,0.0001945,2]
[346285780,1734868233921,-504.60741076,0.0001945,2]
[346285781,1734868233930,-500.0,0.0001945,2]
[346285782,1734868233939,-500.0,0.0001945,2]
[346285783,1734868233948,-500.0,0.0001945,2]
[346285784,1734868233957,-500.0,0.0001945,2]
[346285785,1734868233966,-500.0,0.0001945,2]
[346285786,1734868233975,-500.0,0.0001945,2]
[346285787,1734868233985,-500.0,0.0001945,2]
[346285788,1734868233994,-500.0,0.0001945,2]
[346285789,1734868234004,-500.0,0.0001945,2]
[346285790,1734868234014,-644.69,0.0001945,2]
[346285791,1734868234024,-500.0,0.0001945,2]
[346285792,1734868234034,-500.0,0.0001945,2]
[346285793,1734868234043,-515.20978555,0.0001945,2]
[346285794,1734868234052,-500.0,0.0001945,2]
[346285795,1734868234062,-500.0,0.0001945,2]
[346285796,1734868234071,-500.0,0.0001945,2]
[346285797,1734868234081,-500.0,0.0001945,2]
[346285798,1734868234091,-295.88466468,0.0001945,2]
[346285799,1734868234100,-291.2460916,0.0001945,2]
[346285800,1734868234111,-500.0,0.0001945,2]
[346285801,1734868234121,-496.97,0.0001945,2]
[346285802,1734868234130,-500.0,0.0001945,2]
[346285803,1734868234140,-771.98,0.0001945,2]
[346285804,1734868234149,-500.0,0.0001945,2]
[346285805,1734868234158,-500.0,0.0001945,2]
[346285806,1734868234168,-500.0,0.0001945,2]
[346285807,1734868234177,-920.22,0.0001945,2]
[346285808,1734868234187,-500.0,0.0001945,2]
[346285809,1734868234197,-500.0,0.0001945,2]
[346285810,1734868234206,-500.0,0.0001945,2]
[346285811,1734868234215,-500.0,0.0001945,2]
[346285812,1734868234225,-500.0,0.0001945,2]
[346285813,1734868234234,-1044.86,0.0001945,2]
[346285814,1734868234243,-3175.84,0.0001945,2]
[346285815,1734868234252,-1057.36,0.0001945,2]
[346285816,1734868234262,-500.0,0.0001945,2]
[346285817,1734868234271,-500.0,0.0001945,2]
[346285818,1734868234281,-667.31,0.0001945,2]
[346285819,1734868234290,-509.09,0.0001945,2]
[346285820,1734868234299,-500.0,0.0001945,2]
[346285821,1734868234308,-500.0,0.0001945,2]
[346285822,1734868234317,-500.0,0.0001945,2]
[346285823,1734868234326,-500.0,0.0001945,2]
[346285824,1734868234335,-500.0,0.0001945,2]
[346285825,1734868234344,-202.0,0.0001947,2]
[346285826,1734868234354,-400.22168418,0.00019471,2]
[346285827,1734868234363,-400.22168418,0.00019533,2]
[346285828,1734868234372,-400.22168418,0.00019594,2]
[346285829,1734868234382,-151.64399428,0.000196,2]
[346285830,1734868234391,-191.51981824,0.00019623,2]
[346285831,1734868234400,-198.63125538,0.00019623,2]
[346285832,1734868234409,-1000.0,0.00019624,2]
[346285833,1734868234419,-151.64399428,0.00019625,2]
[346285834,1734868234428,-400.22168418,0.00019655,2]
[346285835,1734868234442,-1000.0,0.000197,2]
[346285836,1734868234451,-152.0,0.0001971,4]
[346285837,1734868234460,-1492.61,0.00019713,2]
[346285838,1734868234469,-1492.61,0.00019713,2]
[346285839,1734868234478,-1492.61,0.00019714,2]
[346285840,1734868234487,-400.22168418,0.00019716,2]
[346285841,1734868234496,-500.0,0.00019723,2]
[346285842,1734868234506,-500.0,0.00019723,2]
[346285843,1734868234516,-500.0,0.00019723,2]
[346285844,1734868234525,-500.0,0.00019723,2]
[346285845,1734868234535,-690.77,0.00019723,2]
[346285846,1734868234543,-394.78,0.00019723,2]
[346285847,1734868234552,-500.0,0.00019723,2]
[346285848,1734868234561,-500.0,0.00019723,2]
[346285849,1734868234570,-500.0,0.00019723,2]
[346285850,1734868234579,-562.55,0.00019723,2]
[346285851,1734868234588,-500.0,0.00019723,2]
[346285852,1734868234597,-500.0,0.00019723,2]
[346285853,1734868234607,-500.0,0.00019723,2]
[346285854,1734868234617,-500.0,0.00019723,2]
[346285855,1734868234626,-500.0,0.00019723,2]
[346285856,1734868234635,-500.0,0.00019723,2]
[346285857,1734868234644,-500.0,0.00019723,2]
[346285858,1734868234653,-500.0,0.00019723,2]
[346285859,1734868234662,-500.0,0.00019723,2]
[346285860,1734868234671,-500.0,0.00019723,2]
[346285861,1734868234680,-500.0,0.00019723,2]
[346285862,1734868234690,-824.97,0.00019723,2]
[346285863,1734868234701,-500.0,0.00019723,2]
[346285864,1734868234710,-509.06656337,0.00019723,2]
[346285865,1734868234719,-500.0,0.00019723,2]
[346285866,1734868234728,-500.0,0.00019723,2]
[346285867,1734868234738,-501.61399874,0.00019723,2]
[346285868,1734868234747,-500.0,0.00019723,2]
[346285869,1734868234756,-659.4,0.00019723,2]
[346285870,1734868234765,-500.0,0.00019723,2]
[346285871,1734868234775,-500.0,0.00019723,2]
[346285872,1734868234784,-500.0,0.00019723,2]
[346285873,1734868234793,-500.0,0.00019723,2]
[346285874,1734868234802,-694.89,0.00019723,2]
[346285875,1734868234811,-246.77480629,0.00019723,2]
[346285876,1734868234821,-379.366327,0.00019723,2]
[346285877,1734868234830,-439.160642,0.00019723,2]
[346285878,1734868234840,-582.86,0.00019723,2]
[346285879,1734868234849,-500.0,0.00019723,2]
[346285880,1734868234860,-1868.46,0.00019723,2]
[346285881,1734868234870,-555.82,0.00019723,2]
[346285882,1734868234879,-500.0,0.00019723,2]
[346285883,1734868234889,-1628.17,0.00019723,2]
[346285884,1734868234898,-500.0,0.00019723,2]
[346285885,1734868234907,-876.51,0.00019723,2]
[346285886,1734868234916,-546.92,0.00019723,2]
[346285887,1734868234926,-1202.86,0.00019723,2]
[346285888,1734868234935,-500.0,0.00019723,2]
[346285889,1734868234944,-5687.81,0.00019723,2]
[346285890,1734868234954,-500.0,0.00019723,2]
[346285891,1734868234963,-500.0,0.00019723,2]
[346285892,1734868234972,-708.42,0.00019723,2]
[346285893,1734868234982,-500.0,0.00019723,2]
[346285894,1734868234991,-500.0,0.00019723,2]
[346285895,1734868235000,-500.0,0.00019723,2]
[346285896,1734868235009,-4005.41,0.00019723,2]
[346285897,1734868235018,-500.0,0.00019723,2]
[346285898,1734868235028,-500.0,0.00019723,2]
[346285899,1734868235037,-1542.34,0.00019723,2]
[346285900,1734868235046,-1438.75,0.00019723,2]
[346285901,1734868235055,-523.94,0.00019723,2]
[346285902,1734868235065,-1086.04,0.00019723,2]
[346285903,1734868235075,-500.0,0.00019723,2]
[346285904,1734868235084,-693.12,0.00019723,2]
[346285905,1734868235093,-500.0,0.00019723,2]
[346285906,1734868235103,-1589.32,0.00019723,2]
[346285907,1734868235112,-976.25,0.00019723,2]
[346285908,1734868235122,-929.32,0.00019723,2]
[346285909,1734868235131,-7084.68,0.00019723,2]
[346285910,1734868235140,-1550.73,0.00019723,2]
[346285911,1734868235150,-500.0,0.00019723,2]
[346285912,1734868235159,-1572.79,0.00019723,2]
[346285913,1734868235168,-585.54,0.00019723,2]
[346285914,1734868235177,-500.0,0.00019723,2]
[346285915,1734868235187,-500.0,0.00019723,2]
[346285916,1734868235197,-528.72,0.00019723,2]
[346285917,1734868235205,-522.09,0.00019723,2]
[346285918,1734868235214,-4297.81,0.00019723,2]
[346285919,1734868235223,-500.0,0.00019723,2]
[346285920,1734868235232,-3008.07,0.00019723,2]
[346285921,1734868235241,-500.0,0.00019723,2]
[346285922,1734868235250,-704.69,0.00019723,2]
[346285923,1734868235259,-1494.56,0.00019723,2]
[346285924,1734868235269,-500.0,0.00019723,2]
[346285925,1734868235277,-551.44,0.00019723,2]
[346285926,1734868235287,-1554.54,0.00019723,2]
[346285927,1734868235296,-6120.54,0.00019723,2]
[346285928,1734868235305,-1892.03,0.00019723,2]
[346285929,1734868235315,-500.0,0.00019723,2]
[346285930,1734868235324,-559.03,0.00019723,2]
[346285931,1734868235333,-1521.27,0.00019723,2]
[346285932,1734868235343,-500.0,0.00019723,2]
[346285933,1734868235353,-2099.13,0.00019723,2]
[346285934,1734868235363,-2879.78,0.00019723,2]
[346285935,1734868235372,-500.0,0.00019723,2]
[346285936,1734868235382,-4352.08,0.00019723,2]
[346285937,1734868235391,-500.0,0.00019723,2]
[346285938,1734868235400,-330.6121081,0.00019723,2]
[346285939,1734868235410,-500.0,0.00019723,2]
[346285940,1734868235419,-1391.97,0.00019723,2]
[346285941,1734868235428,-746.44,0.00019723,2]
[346285942,1734868235441,-500.0,0.00019723,2]
[346285943,1734868235451,-2012.89,0.00019723,2]
[346285944,1734868235460,-500.0,0.00019723,2]
[346285945,1734868235470,-815.85,0.00019723,2]
[346285946,1734868235481,-11499.25,0.00019723,2]
[346285947,1734868235490,-1223.66,0.00019723,2]
[346285948,1734868235500,-500.0,0.00019723,2]
[346285949,1734868235509,-551.31,0.00019723,2]
[346285950,1734868235519,-768.07,0.00019723,2]
[346285951,1734868235529,-500.0,0.00019723,2]
[346285952,1734868235538,-500.0,0.00019723,2]
[346285953,1734868235548,-515.23,0.00019724,2]
[346285954,1734868235557,-500.0,0.00019724,2]
[346285955,1734868235566,-500.0,0.00019724,2]
[346285956,1734868235576,-500.0,0.00019724,2]
[346285957,1734868235586,-500.0,0.00019724,2]
[346285958,1734868235595,-500.0,0.00019724,2]
[346285959,1734868235606,-500.0,0.00019724,2]
[346285960,1734868235615,-500.0,0.00019724,2]
[346285961,1734868235625,-500.0,0.00019724,2]
[346285962,1734868235634,-222.78280431,0.00019724,2]
[346285963,1734868235643,-500.0,0.00019724,2]
[346285964,1734868235652,-335.33156669,0.00019724,2]
[346285965,1734868235661,-500.0,0.00019724,2]
[346285966,1734868235670,-644.69,0.00019724,2]
[346285967,1734868235679,-500.0,0.00019724,2]
[346285968,1734868235689,-500.0,0.00019724,2]
[346285969,1734868235699,-500.0,0.00019724,2]
[346285970,1734868235708,-531.1664079,0.00019724,2]
[346285971,1734868235718,-500.0,0.00019724,2]
[346285972,1734868235727,-500.0,0.00019724,2]
[346285973,1734868235737,-500.0,0.00019724,2]
[346285974,1734868235746,-500.0,0.00019724,2]
[346285975,1734868235755,-771.98,0.00019724,2]
[346285976,1734868235764,-500.0,0.00019724,2]
[346285977,1734868235774,-500.0,0.00019724,2]
[346285978,1734868235783,-500.0,0.00019724,2]
[346285979,1734868235792,-920.22,0.00019724,2]
[346285980,1734868235802,-500.0,0.00019724,2]
[346285981,1734868235811,-500.0,0.00019724,2]
[346285982,1734868235821,-500.0,0.00019724,2]
[346285983,1734868235830,-627.7,0.00019724,2]
[346285984,1734868235840,-500.0,0.00019724,2]
[346285985,1734868235849,-1044.86,0.00019724,2]
[346285986,1734868235858,-500.0,0.00019724,2]
[346285987,1734868235867,-3175.84,0.00019724,2]
[346285988,1734868235877,-1057.36,0.00019724,2]
[346285989,1734868235886,-500.0,0.00019724,2]
[346285990,1734868235895,-500.0,0.00019724,2]
[346285991,1734868235904,-525.97,0.00019724,2]
[346285992,1734868235914,-534.66,0.00019724,2]
[346285993,1734868235923,-500.0,0.00019724,2]
[346285994,1734868235932,-500.0,0.00019724,2]
[346285995,1734868235941,-500.0,0.00019724,2]
[346285996,1734868235950,-667.31,0.00019724,2]
[346285997,1734868235959,-1046.69,0.00019724,2]
[346285998,1734868235968,-988.12,0.00019724,2]
[346285999,1734868235978,-509.09,0.00019724,2]
[346286000,1734868235987,-849.72,0.00019724,2]
[346286001,1734868235996,-55.14821318,0.00019724,2]
[346286002,1734868236011,-1640.41786084,0.00019724,2]
[346286008,1734868238180,-500.0,0.00019723,2]
[346286010,1734868238189,-353.2001569,0.00019724,2]
[346286012,1734868238200,-842.38670948,0.00019724,2]
[346286014,1734868238212,-738.69964851,0.00019724,2]
[346286016,1734868238223,-965.47893929,0.00019724,2]
[346286017,1734868238240,-1488.6284718,0.00019724,2]
[346286018,1734868238249,-500.0,0.00019724,2]
[346286019,1734868238259,-301.1115782,0.00019724,2]
[346286020,1734868238269,-198.8884218,0.00019724,2]
[346286021,1734868238279,-269.4115782,0.00019724,2]
[346286022,1734868238294,-230.5884218,0.00019724,2]
[346286023,1734868238303,-283.50798214,0.00019724,2]
[346286024,1734868238314,-464.32201786,0.00019724,2]
[346286025,1734868238323,-97.71715902,0.00019724,2]
[346286026,1734868238334,-402.28284098,0.00019724,2]
[346286027,1734868238343,-500.0,0.00019724,2]
[346286028,1734868238352,-518.17,0.00019724,2]
[346286029,1734868238363,-1854.6008262,0.00019724,2]
[346286030,1734868238375,-468.092625,0.00019724,2]
[346286031,1734868238388,-2388.94041669,0.00019724,2]
[346286032,1734868238399,-10062.62613211,0.00019724,2]
[346286033,1734868238410,-500.0,0.00019724,2]
[346286034,1734868238419,-1645.14,0.00019724,2]
[346286035,1734868238429,-2296.78,0.00019724,2]
[346286036,1734868238446,-521.81,0.00019724,2]
[346286037,1734868238456,-4479.59,0.00019724,2]
[346286038,1734868238466,-202.0,0.0001974,2]
[346286039,1734868238475,-191.51981824,0.00019762,2]
[346286040,1734868238488,-400.22168418,0.00019778,2]
[346286041,1734868238497,-150.0,0.00019779,2]
[346286042,1734868238510,-10614.96236539,0.000198,2]
[346286043,1734868238521,-6348.342,0.000198,2]
[346286044,1734868238532,-1120.0,0.000198,2]
[346286047,1734868238544,-10892.39908829,0.000198,2]
[346286049,1734868238555,-2115.47849276,0.000198,2]
[346286051,1734868238566,-1059.1064544,0.000198,2]
[346286053,1734868238577,-2094.8,0.000198,2]
[346286055,1734868238588,-2633.9186044,0.000198,2]
[346286058,1734868238601,-13580.98115534,0.000198,2]
[346286060,1734868238614,-158.97324636,0.000198,2]
[346286062,1734868238625,-950.71287253,0.000198,2]
[346286103,1734868240291,-670.22,0.00019723,2]
[346286104,1734868240301,-805.19,0.00019724,2]
[346286105,1734868240311,-2049.28712747,0.000198,2]
[346286106,1734868240320,-1000.0,0.000198,2]
[346286107,1734868240329,-150.0,0.00019822,2]
[346286108,1734868240338,-1386.18027452,0.00019829,2]
[346286109,1734868240352,-106.42972548,0.00019829,2]
[346286110,1734868240362,-400.22168418,0.00019839,2]
[346286111,1734868240371,-456.0549395,0.00019839,2]
[346286112,1734868240382,-43.9450605,0.00019839,2]
[346286113,1734868240392,-276.30297781,0.0001984,2]
[346286114,1734868240403,-223.69702219,0.0001984,2]
[346286115,1734868240413,-97.40320566,0.0001985,2]
[346286116,1734868240424,-973.3310288,0.0001985,2]
[346286117,1734868240439,-341.01000001,0.0001985,2]
[346286118,1734868240450,-1699.68651401,0.0001985,2]
[346286119,1734868240492,-1018.33,0.0001985,2]
[346286120,1734868240503,-2023.12999991,0.0001985,2]
[346286121,1734868240515,-851.66209195,0.0001985,2]
[346286122,1734868240526,-11819.39745183,0.0001985,2]
[346286123,1734868240568,-2446.67393065,0.0001985,2]
[346286124,1734868240579,-3257.921871,0.0001985,2]
[346286125,1734868240591,-745.82497611,0.0001985,2]
[346286126,1734868240602,-383.57266039,0.0001985,2]
[346286127,1734868240614,-5620.00299894,0.0001985,2]
[346286128,1734868240626,-8722.05327074,0.0001985,2]
[346286129,1734868240635,-153.0,0.00019873,2]
[346286130,1734868240644,-2547.2494,0.000199,2]
[346286131,1734868240653,-7942.5447,0.000199,2]
[346286132,1734868240663,-1957.68,0.000199,2]
[346286133,1734868240672,-3394.0,0.000199,2]
[346286134,1734868240681,-3926.444346,0.000199,2]
[346286135,1734868240690,-185.347,0.000199,2]
[346286136,1734868240700,-2211.272,0.000199,2]
[346286137,1734868240709,-249.96646321,0.000199,2]
[346286138,1734868240719,-191.51981824,0.000199,2]
[346286139,1734868240728,-1093.0,0.000199,2]
[346286140,1734868240738,-400.22168418,0.000199,2]
[346286141,1734868240747,-151.64399428,0.000199,2]
[346286142,1734868240756,-415.91699699,0.00019921,2]
[346286143,1734868240765,-341.49,0.00019961,2]
[346286144,1734868240775,-160.00510644,0.00019973,2]
[346286145,1734868240784,-500.0,0.00019973,2]
[346286146,1734868240793,-283.34151214,0.00019973,2]
[346286147,1734868240803,-152.84,0.00019987,2]
[346286148,1734868240812,-163.69806722,0.00019997,2]
[346286160,1734868241025,-241.38193278,0.00019997,2]
[346286161,1734868241034,-89.68806722,0.00019997,2]
[346286162,1734868241046,-294.0,0.00019997,2]
[346286163,1734868241058,-116.31193278,0.00019997,2]
[346286164,1734868241068,-500.0,0.00019997,2]
[346286165,1734868241077,-391.38851102,0.00019997,2]
[346286166,1734868241087,-690.77,0.00019997,2]
[346286167,1734868241096,-451.91148984,0.00019997,2]
[346286168,1734868241105,-500.0,0.00019997,2]
[346286169,1734868241116,-500.0,0.00019997,2]
[346286170,1734868241125,-500.0,0.00019997,2]
[346286171,1734868241134,-562.55,0.00019997,2]
[346286172,1734868241143,-500.0,0.00019997,2]
[346286173,1734868241152,-500.0,0.00019997,2]
[346286174,1734868241161,-500.0,0.00019997,2]
[346286175,1734868241170,-500.0,0.00019997,2]
[346286176,1734868241179,-435.43054586,0.00019997,2]
[346286177,1734868241188,-500.0,0.00019997,2]
[346286178,1734868241197,-346.06424078,0.00019997,2]
[346286189,1734868244080,-531.18699998,0.00019449,2]
[346286190,1734868244094,-100.73300002,0.00019449,2]
[346286191,1734868244106,-1045.9241457,0.00019623,2]
[346286192,1734868244164,-375.24779947,0.00019623,2]
[346286193,1734868244179,-781.27465,0.00019623,2]
[346286194,1734868244252,-2797.55340483,0.00019623,2]
[346286195,1734868244264,-631.92,0.00019723,2]
[346286196,1734868244275,-500.0,0.00019723,2]
[346286197,1734868244295,-153.93575922,0.00019997,2]
[346286198,1734868244307,-500.0,0.00019997,2]
[346286199,1734868244318,-500.0,0.00019997,2]
[346286200,1734868244329,-500.0,0.00019997,2]
[346286201,1734868244341,-500.0,0.00019997,2]
[346286202,1734868244352,-824.97,0.00019997,2]
[346286203,1734868244363,-500.0,0.00019997,2]
[346286204,1734868244375,-500.0,0.00019997,2]
[346286205,1734868244388,-362.51,0.00019997,2]
[346286206,1734868244401,-500.0,0.00019997,2]
[346286207,1734868244413,-500.0,0.00019997,2]
[346286208,1734868244426,-500.0,0.00019997,2]
[346286209,1734868244440,-500.0,0.00019997,2]
[346286210,1734868244451,-500.0,0.00019997,2]
[346286211,1734868244465,-694.89,0.00019997,2]
[346286212,1734868244478,-379.366327,0.00019997,2]
[346286213,1734868244492,-439.160642,0.00019997,2]
[346286214,1734868244505,-582.86,0.00019997,2]
[346286215,1734868244517,-338.03178476,0.00019997,2]
[346286227,1734868244736,-1868.46,0.00019997,2]
[346286230,1734868244748,-555.82,0.00019997,2]
[346286232,1734868244760,-500.0,0.00019997,2]
[346286234,1734868244774,-1628.17,0.00019997,2]
[346286236,1734868244786,-500.0,0.00019997,2]
[346286237,1734868244796,-876.51,0.00019997,2]
[346286238,1734868244808,-546.92,0.00019997,2]
[346286239,1734868244818,-1202.86,0.00019997,2]
[346286240,1734868244828,-500.0,0.00019997,2]